fUSD/lending_fUSD_20241221
["ID","MTS","AMOUNT","RATE_DAILY","PERIOD"]
[346244367,1734807032753,-150.0,0.0001979,2]
[346244369,1734807032763,-150.0,0.00019793,2]
[346244371,1734807032772,-150.0,0.00019795,2]
[346244373,1734807032781,-150.0,0.00019796,2]
[346244374,1734807032790,-270.48780477,0.00019798,2]
[346244375,1734807032802,-150.0,0.00019798,2]
[346244376,1734807032811,-16405.6371,0.00019799,2]
[346244377,1734807032820,-225.87767134,0.00019799,2]
[346244378,1734807032829,-500.0,0.00019799,2]
[346244379,1734807032839,-500.0,0.00019799,2]
[346244380,1734807032848,-500.0,0.00019799,2]
[346244381,1734807032858,-500.0,0.00019799,2]
[346244382,1734807032867,-500.0,0.00019799,2]
[346244383,1734807032876,-500.0,0.00019799,2]
[346244384,1734807032885,-500.0,0.00019799,2]
[346244385,1734807032894,-500.0,0.00019799,2]
[346244386,1734807032903,-500.0,0.00019799,2]
[346244387,1734807032912,-506.29008162,0.00019799,2]
[346244388,1734807032921,-500.0,0.00019799,2]
[346244389,1734807032931,-500.0,0.00019799,2]
[346244390,1734807032940,-500.0,0.00019799,2]
[346244391,1734807032949,-500.0,0.00019799,2]
[346244392,1734807032958,-500.0,0.00019799,2]
[346244393,1734807032968,-500.0,0.00019799,2]
[346244394,1734807032977,-500.0,0.00019799,2]
[346244395,1734807032987,-500.0,0.00019799,2]
[346244396,1734807032995,-500.0,0.00019799,2]
[346244397,1734807033005,-565.00190337,0.00019799,2]
[346244398,1734807033014,-500.0,0.00019799,2]
[346244399,1734807033022,-500.0,0.00019799,2]
[346244400,1734807033032,-332.78140525,0.00019799,2]
[346244401,1734807033041,-2564.7885328,0.00019799,120]
[346244402,1734807033050,-500.0,0.00019799,2]
[346244403,1734807033059,-500.0,0.00019799,2]
[346244404,1734807033069,-500.0,0.00019799,2]
[346244405,1734807033078,-470.0,0.00019799,2]
[346244406,1734807033088,-500.0,0.00019799,2]
[346244407,1734807033098,-151.26046623,0.00019799,2]
[346244408,1734807033107,-500.0,0.00019799,2]
[346244409,1734807033116,-500.0,0.00019799,2]
[346244410,1734807033126,-500.0,0.00019799,2]
[346244411,1734807033136,-500.0,0.00019799,2]
[346244412,1734807033145,-500.0,0.00019799,2]
[346244413,1734807033156,-500.0,0.00019799,2]
[346244414,1734807033165,-500.0,0.00019799,2]
[346244415,1734807033175,-500.0,0.00019799,2]
[346244416,1734807033185,-500.0,0.00019799,2]
[346244417,1734807033194,-500.0,0.00019799,2]
[346244418,1734807033203,-588.62,0.00019799,2]
[346244419,1734807033212,-500.0,0.00019799,2]
[346244420,1734807033223,-418.86596993,0.00019799,2]
[346244421,1734807033232,-500.0,0.00019799,2]
[346244422,1734807033242,-595.2,0.00019799,2]
[346244423,1734807033251,-763.92,0.00019799,2]
[346244424,1734807033261,-500.0,0.00019799,2]
[346244425,1734807033270,-500.0,0.00019799,2]
[346244426,1734807033280,-500.0,0.00019799,2]
[346244427,1734807033289,-500.0,0.00019799,2]
[346244428,1734807033299,-500.0,0.00019799,2]
[346244429,1734807033309,-500.0,0.00019799,2]
[346244430,1734807033318,-500.0,0.00019799,2]
[346244431,1734807033329,-500.0,0.00019799,2]
[346244432,1734807033338,-500.0,0.00019799,2]
[346244433,1734807033347,-500.0,0.00019799,2]
[346244434,1734807033357,-500.0,0.00019799,2]
[346244435,1734807033367,-500.0,0.00019799,2]
[346244436,1734807033377,-563.96,0.00019799,2]
[346244437,1734807033387,-500.0,0.00019799,2]
[346244438,1734807033396,-500.0,0.00019799,2]
[346244439,1734807033406,-500.0,0.00019799,2]
[346244440,1734807033415,-587.27935106,0.00019799,2]
[346244441,1734807033425,-500.01,0.00019799,2]
[346244442,1734807033434,-500.0,0.00019799,2]
[346244443,1734807033445,-159.90808329,0.00019799,2]
[346244444,1734807033455,-500.0,0.00019799,2]
[346244445,1734807033466,-500.0,0.00019799,2]
[346244446,1734807033476,-500.0,0.00019799,2]
[346244447,1734807033486,-243.88,0.00019799,2]
[346244448,1734807033495,-500.0,0.00019799,2]
[346244449,1734807033505,-518.89947166,0.00019799,2]
[346244450,1734807033514,-500.0,0.00019799,2]
[346244451,1734807033524,-500.0,0.00019799,2]
[346244452,1734807033534,-500.0,0.00019799,2]
[346244453,1734807033543,-500.0,0.00019799,2]
[346244454,1734807033554,-500.0,0.00019799,2]
[346244455,1734807033564,-500.0,0.00019799,2]
[346244456,1734807033574,-500.0,0.00019799,2]
[346244457,1734807033584,-500.0,0.00019799,2]
[346244458,1734807033594,-500.0,0.00019799,2]
[346244459,1734807033603,-500.0,0.00019799,2]
[346244460,1734807033613,-500.0,0.00019799,2]
[346244461,1734807033622,-196.77623189,0.00019799,2]
[346244462,1734807033632,-500.0,0.00019799,2]
[346244463,1734807033641,-500.0,0.00019799,2]
[346244464,1734807033652,-502.09282213,0.00019799,2]
[346244465,1734807033662,-500.0,0.00019799,2]
[346244466,1734807033671,-500.0,0.00019799,2]
[346244467,1734807033681,-500.0,0.00019799,2]
[346244468,1734807033692,-500.0,0.00019799,2]
[346244469,1734807033702,-500.0,0.00019799,2]
[346244470,1734807033711,-500.0,0.00019799,2]
[346244471,1734807033720,-500.0,0.00019799,2]
[346244472,1734807033729,-500.0,0.00019799,2]
[346244473,1734807033738,-500.0,0.00019799,2]
[346244474,1734807033748,-500.0,0.00019799,2]
[346244475,1734807033758,-577.96342469,0.00019799,2]
[346244476,1734807033767,-500.0,0.00019799,2]
[346244477,1734807033778,-500.0,0.00019799,2]
[346244478,1734807033787,-500.0,0.00019799,2]
[346244479,1734807033796,-500.0,0.00019799,2]
[346244480,1734807033807,-500.0,0.00019799,2]
[346244481,1734807033816,-500.0,0.00019799,2]
[346244482,1734807033826,-500.0,0.00019799,2]
[346244483,1734807033835,-500.0,0.00019799,2]
[346244484,1734807033845,-500.0,0.00019799,2]
[346244485,1734807033854,-500.0,0.00019799,2]
[346244486,1734807033864,-500.0,0.00019799,2]
[346244487,1734807033873,-500.0,0.00019799,2]
[346244488,1734807033882,-500.0,0.00019799,2]
[346244489,1734807033892,-500.0,0.00019799,2]
[346244490,1734807033902,-500.0,0.00019799,2]
[346244491,1734807033912,-500.0,0.00019799,2]
[346244492,1734807033921,-500.0,0.00019799,2]
[346244493,1734807033931,-500.0,0.00019799,2]
[346244494,1734807033941,-500.0,0.00019799,2]
[346244495,1734807033950,-500.0,0.00019799,2]
[346244496,1734807033961,-500.0,0.00019799,2]
[346244497,1734807033970,-524.26,0.00019799,2]
[346244498,1734807033979,-500.0,0.00019799,2]
[346244499,1734807033989,-500.0,0.00019799,2]
[346244500,1734807033999,-500.0,0.00019799,2]
[346244501,1734807034009,-500.0,0.00019799,2]
[346244502,1734807034019,-500.0,0.00019799,2]
[346244503,1734807034029,-500.0,0.00019799,2]
[346244504,1734807034038,-500.0,0.00019799,2]
[346244505,1734807034047,-500.0,0.00019799,2]
[346244506,1734807034057,-500.0,0.00019799,2]
[346244507,1734807034066,-500.0,0.00019799,2]
[346244508,1734807034075,-428.74334181,0.00019799,2]
[346244509,1734807034085,-501.36,0.00019799,2]
[346244510,1734807034094,-500.0,0.00019799,2]
[346244511,1734807034103,-500.0,0.00019799,2]
[346244512,1734807034113,-500.0,0.00019799,2]
[346244513,1734807034122,-500.0,0.00019799,2]
[346244514,1734807034132,-529.7,0.00019799,2]
[346244515,1734807034141,-500.0,0.00019799,2]
[346244516,1734807034150,-500.0,0.00019799,2]
[346244517,1734807034159,-500.0,0.00019799,2]
[346244518,1734807034169,-344.39831686,0.00019799,2]
[346244519,1734807034178,-500.0,0.00019799,2]
[346244520,1734807034187,-500.0,0.00019799,2]
[346244521,1734807034198,-500.0,0.00019799,2]
[346244522,1734807034207,-500.0,0.00019799,2]
[346244523,1734807034216,-500.0,0.00019799,2]
[346244524,1734807034226,-500.0,0.00019799,2]
[346244525,1734807034235,-531.76,0.00019799,2]
[346244526,1734807034245,-500.0,0.00019799,2]
[346244527,1734807034254,-500.0,0.00019799,2]
[346244528,1734807034264,-500.0,0.00019799,2]
[346244529,1734807034273,-500.0,0.00019799,2]
[346244530,1734807034283,-500.0,0.00019799,2]
[346244532,1734807034292,-500.0,0.00019799,2]
[346244533,1734807034303,-500.0,0.00019799,2]
[346244534,1734807034312,-500.0,0.00019799,2]
[346244535,1734807034321,-500.0,0.00019799,2]
[346244536,1734807034332,-500.0,0.00019799,2]
[346244537,1734807034341,-500.0,0.00019799,2]
[346244538,1734807034351,-500.0,0.00019799,2]
[346244539,1734807034361,-500.0,0.00019799,2]
[346244540,1734807034370,-500.0,0.00019799,2]
[346244541,1734807034380,-286.1,0.00019799,2]
[346244542,1734807034389,-500.0,0.00019799,2]
[346244543,1734807034399,-500.0,0.00019799,2]
[346244544,1734807034408,-500.0,0.00019799,2]
[346244545,1734807034418,-500.0,0.00019799,2]
[346244546,1734807034427,-500.0,0.00019799,2]
[346244547,1734807034436,-500.0,0.00019799,2]
[346244548,1734807034446,-500.0,0.00019799,2]
[346244549,1734807034455,-500.0,0.00019799,2]
[346244550,1734807034466,-500.0,0.00019799,2]
[346244551,1734807034476,-500.0,0.00019799,2]
[346244552,1734807034661,-500.0,0.00019799,2]
[346244553,1734807034670,-500.0,0.00019799,2]
[346244554,1734807034679,-500.0,0.00019799,2]
[346244555,1734807034689,-500.0,0.00019799,2]
[346244556,1734807034699,-500.0,0.00019799,2]
[346244557,1734807034708,-500.0,0.00019799,2]
[346244558,1734807034718,-500.0,0.00019799,2]
[346244559,1734807034727,-1675.4,0.00019799,2]
[346244560,1734807034736,-500.0,0.00019799,2]
[346244561,1734807034746,-330.53708914,0.00019799,2]
[346244562,1734807034755,-500.0,0.00019799,2]
[346244563,1734807034764,-500.0,0.00019799,2]
[346244564,1734807034774,-500.0,0.00019799,2]
[346244565,1734807034783,-500.0,0.00019799,2]
[346244566,1734807034792,-500.0,0.00019799,2]
[346244567,1734807034803,-543.86,0.00019799,2]
[346244568,1734807034812,-500.0,0.00019799,2]
[346244569,1734807034822,-615.10833277,0.000198,2]
[346244570,1734807034832,-18822.72332919,0.000198,2]
[346244571,1734807034842,-150.0,0.000198,2]
[346244572,1734807034852,-5000.0,0.000198,2]
[346244573,1734807034861,-1544.9644684,0.000198,2]
[346244574,1734807034870,-150.0,0.000198,2]
[346244575,1734807034880,-432.08412,0.000198,2]
[346244576,1734807034890,-738.0,0.000198,7]
[346244577,1734807034899,-150.0,0.00019801,2]
[346244578,1734807034908,-150.0,0.00019801,2]
[346244579,1734807034918,-150.0,0.00019806,2]
[346244580,1734807034927,-150.0,0.00019808,2]
[346244581,1734807034936,-226.76892171,0.00019808,2]
[346244582,1734807034946,-150.0,0.00019809,2]
[346244583,1734807034955,-1687.94703953,0.0001981,2]
[346244584,1734807034964,-1544.96446837,0.00019811,2]
[346244585,1734807034973,-150.0,0.00019814,2]
[346244586,1734807034983,-150.0,0.00019814,2]
[346244587,1734807034992,-150.0,0.00019816,2]
[346244588,1734807035002,-150.0,0.00019817,2]
[346244589,1734807035011,-1500.0,0.00019818,2]
[346244590,1734807035020,-150.0,0.00019822,2]
[346244591,1734807035029,-1544.96446837,0.00019822,2]
[346244592,1734807035039,-391.01790925,0.00019827,2]
[346244593,1734807035048,-150.0,0.00019831,2]
[346244594,1734807035058,-1544.96446837,0.00019833,2]
[346244595,1734807035068,-500.0,0.00019839,2]
[346244596,1734807035077,-500.0,0.0001984,2]
[346244597,1734807035086,-150.0,0.00019841,2]
[346244598,1734807035096,-1544.96446837,0.00019844,2]
[346244599,1734807035105,-150.0,0.00019846,2]
[346244600,1734807035114,-150.0,0.00019849,2]
[346244601,1734807035123,-150.0,0.0001985,2]
[346244602,1734807035132,-740.49630546,0.00019855,2]
[346244603,1734807035142,-1544.96446837,0.00019856,2]
[346244604,1734807035151,-150.0,0.00019856,2]
[346244605,1734807035160,-150.0,0.00019857,2]
[346244606,1734807035170,-150.0,0.00019858,2]
[346244607,1734807035179,-150.0,0.0001986,2]
[346244608,1734807035189,-150.0,0.0001986,2]
[346244609,1734807035197,-176.85,0.0001986,2]
[346244610,1734807035206,-150.0,0.00019862,2]
[346244611,1734807035216,-150.0,0.00019863,2]
[346244612,1734807035225,-1544.96446837,0.00019867,2]
[346244613,1734807035235,-150.0,0.00019869,2]
[346244614,1734807035244,-300.0,0.00019869,2]
[346244615,1734807035254,-150.0,0.0001987,2]
[346244616,1734807035263,-150.0,0.0001987,2]
[346244617,1734807035273,-150.0,0.0001987,2]
[346244618,1734807035282,-150.0,0.00019874,2]
[346244619,1734807035292,-150.0,0.00019876,2]
[346244620,1734807035303,-740.49630546,0.00019878,2]
[346244621,1734807035312,-1544.96446837,0.00019878,2]
[346244622,1734807035322,-150.0,0.00019878,2]
[346244623,1734807035332,-150.0,0.0001988,2]
[346244624,1734807035341,-150.0,0.00019882,2]
[346244625,1734807035351,-150.0,0.00019884,2]
[346244626,1734807035360,-150.0,0.00019884,2]
[346244627,1734807035369,-150.0,0.00019886,2]
[346244628,1734807035379,-1544.96446837,0.00019889,2]
[346244629,1734807035388,-150.0,0.00019891,2]
[346244630,1734807035397,-500.0,0.00019893,2]
[346244631,1734807035406,-500.0,0.00019893,2]
[346244632,1734807035416,-500.0,0.00019893,2]
[346244633,1734807035425,-530.5,0.00019893,2]
[346244634,1734807035434,-500.0,0.00019893,2]
[346244635,1734807035444,-500.0,0.00019893,2]
[346244636,1734807035453,-500.0,0.00019893,2]
[346244637,1734807035463,-500.0,0.00019893,2]
[346244638,1734807035475,-500.0,0.00019893,2]
[346244639,1734807035484,-500.0,0.00019893,2]
[346244640,1734807035494,-500.0,0.00019893,2]
[346244641,1734807035503,-500.0,0.00019893,2]
[346244642,1734807035514,-500.0,0.00019893,2]
[346244643,1734807035523,-500.0,0.00019893,2]
[346244644,1734807035533,-500.0,0.00019893,2]
[346244645,1734807035544,-500.0,0.00019893,2]
[346244646,1734807035555,-427.75,0.00019893,2]
[346244647,1734807035565,-500.0,0.00019893,2]
[346244648,1734807035575,-500.0,0.00019893,2]
[346244649,1734807035584,-500.0,0.00019893,2]
[346244650,1734807035593,-500.0,0.00019893,2]
[346244651,1734807035603,-500.0,0.00019893,2]
[346244652,1734807035612,-504.35543367,0.00019893,2]
[346244653,1734807035621,-418.52,0.00019893,2]
[346244654,1734807035631,-500.0,0.00019893,2]
[346244655,1734807035640,-511.56415504,0.00019893,2]
[346244656,1734807035649,-200.0,0.00019893,2]
[346244657,1734807035658,-897.55,0.00019893,2]
[346244658,1734807035668,-500.0,0.00019893,2]
[346244659,1734807035678,-1290.73,0.00019893,2]
[346244660,1734807035688,-500.0,0.00019893,2]
[346244661,1734807035697,-500.0,0.00019893,2]
[346244662,1734807035706,-446.42290842,0.00019893,2]
[346244663,1734807035723,-53.57709158,0.00019893,2]
[346244664,1734807035732,-500.0,0.00019893,2]
[346244665,1734807035741,-1077.74,0.00019893,2]
[346244666,1734807035750,-1406.58,0.00019893,2]
[346244667,1734807035759,-500.0,0.00019893,2]
[346244668,1734807035769,-1776.45,0.00019893,2]
[346244669,1734807035778,-431.51706728,0.00019893,2]
[346244670,1734807035787,-2638.08,0.00019893,2]
[346244671,1734807035797,-500.0,0.00019893,2]
[346244672,1734807035811,-1516.28,0.00019893,2]
[346244673,1734807035821,-500.0,0.00019893,2]
[346244674,1734807035830,-500.0,0.00019893,2]
[346244675,1734807035840,-500.0,0.00019893,2]
[346244676,1734807035849,-1413.23,0.00019893,2]
[346244677,1734807035859,-500.0,0.00019893,2]
[346244678,1734807035868,-1140.61,0.00019893,2]
[346244679,1734807035878,-1052.87,0.00019893,2]
[346244680,1734807035887,-1483.19,0.00019893,2]
[346244681,1734807035897,-512.85,0.00019893,2]
[346244682,1734807035906,-500.0,0.00019893,2]
[346244683,1734807035916,-876.92,0.00019893,2]
[346244684,1734807035925,-374.61580997,0.00019893,2]
[346244685,1734807035934,-500.0,0.00019893,2]
[346244686,1734807035944,-4559.13622644,0.00019893,2]
[346244687,1734807035955,-0.61377356,0.00019893,2]
[346244688,1734807035965,-519.69,0.00019893,2]
[346244689,1734807035974,-21.04122644,0.00019893,2]
[346244690,1734807035985,-478.95877356,0.00019893,2]
[346244691,1734807035995,-500.0,0.00019893,2]
[346244692,1734807036004,-500.0,0.00019893,2]
[346244693,1734807036014,-500.0,0.00019893,2]
[346244694,1734807036023,-500.0,0.00019893,2]
[346244695,1734807036033,-500.0,0.00019893,2]
[346244696,1734807036043,-500.0,0.00019893,2]
[346244697,1734807036054,-618.56,0.00019893,2]
[346244698,1734807036064,-500.0,0.00019893,2]
[346244699,1734807036073,-500.0,0.00019893,2]
[346244700,1734807036083,-500.0,0.00019893,2]
[346244701,1734807036092,-500.0,0.00019893,2]
[346244702,1734807036101,-500.0,0.00019894,2]
[346244703,1734807036111,-500.0,0.00019894,2]
[346244704,1734807036120,-284.1907442,0.00019894,2]
[346244705,1734807036129,-500.0,0.00019894,2]
[346244706,1734807036138,-500.0,0.00019894,2]
[346244707,1734807036147,-500.0,0.00019894,2]
[346244708,1734807036156,-500.0,0.00019894,2]
[346244709,1734807036165,-500.0,0.00019894,2]
[346244710,1734807036174,-109.07854677,0.00019894,2]
[346244711,1734807036198,-390.92145323,0.00019894,2]
[346244712,1734807036207,-500.0,0.00019894,2]
[346244713,1734807036216,-500.0,0.00019894,2]
[346244714,1734807036226,-500.0,0.00019894,2]
[346244715,1734807036235,-53.05854677,0.00019894,2]
[346244716,1734807036374,157.23,0.00010137,2]
[346244720,1734807038544,-150.0,0.00019749,2]
[346244721,1734807038553,-300.0,0.00019844,2]
[346244722,1734807038563,-500.0,0.00019893,2]
[346244723,1734807038573,-154.33224881,0.00019894,2]
[346244730,1734807040102,-292.60920442,0.00019894,2]
[346244731,1734807040112,-500.0,0.00019894,2]
[346244732,1734807040123,-22.79671838,0.00019894,2]
[346244733,1734807040195,-477.20328162,0.00019894,2]
[346244734,1734807040205,-500.0,0.00019894,2]
[346244735,1734807040214,-500.0,0.00019894,2]
[346244736,1734807040223,-500.0,0.00019894,2]
[346244737,1734807040232,-221.097865,0.00019894,2]
[346244738,1734807040242,-500.0,0.00019894,2]
[346244739,1734807040251,-641.3,0.00019894,2]
[346244740,1734807040260,-500.0,0.00019894,2]
[346244741,1734807040270,-278.32,0.00019894,2]
[346244742,1734807040280,-500.0,0.00019894,2]
[346244743,1734807040289,-293.01211443,0.00019894,2]
[346244744,1734807040298,-500.0,0.00019894,2]
[346244745,1734807040310,-301.08114533,0.00019894,2]
[346244746,1734807040320,-500.0,0.00019894,2]
[346244747,1734807040330,-500.0,0.00019894,2]
[346244748,1734807040339,-500.0,0.00019894,2]
[346244749,1734807040350,-500.0,0.00019894,2]
[346244750,1734807040359,-446.4,0.00019894,2]
[346244751,1734807040368,-500.0,0.00019894,2]
[346244752,1734807040377,-500.0,0.00019894,2]
[346244753,1734807040387,-500.0,0.00019894,2]
[346244754,1734807040396,-500.0,0.00019894,2]
[346244755,1734807040406,-500.0,0.00019894,2]
[346244756,1734807040416,-500.0,0.00019894,2]
[346244757,1734807040426,-500.0,0.00019894,2]
[346244758,1734807040435,-500.0,0.00019894,2]
[346244759,1734807040445,-500.0,0.00019894,2]
[346244760,1734807040454,-500.0,0.00019894,2]
[346244761,1734807040463,-329.69563229,0.00019894,2]
[346244762,1734807040477,-500.0,0.00019894,2]
[346244763,1734807040487,-500.0,0.00019894,2]
[346244764,1734807040496,-500.0,0.00019894,2]
[346244765,1734807040505,-702.3,0.00019894,2]
[346244766,1734807040516,-500.0,0.00019894,2]
[346244767,1734807040526,-500.0,0.00019894,2]
[346244768,1734807040535,-483.18177421,0.00019894,2]
[346244769,1734807040545,-500.0,0.00019894,2]
[346244770,1734807040554,-784.59,0.00019894,2]
[346244772,1734807040565,-500.0,0.00019894,2]
[346244773,1734807040574,-500.0,0.00019894,2]
[346244774,1734807040584,-537.71,0.00019894,2]
[346244775,1734807040594,-500.0,0.00019894,2]
[346244776,1734807040603,-500.0,0.00019894,2]
[346244777,1734807040612,-500.0,0.00019894,2]
[346244778,1734807040622,-500.0,0.00019894,2]
[346244779,1734807040631,-500.0,0.00019894,2]
[346244780,1734807040640,-632.35,0.00019894,2]
[346244782,1734807040650,-500.0,0.00019894,2]
[346244784,1734807040659,-537.63,0.00019894,2]
[346244785,1734807040667,-500.0,0.00019894,2]
[346244787,1734807040676,-500.0,0.00019894,2]
[346244788,1734807040685,-888.51,0.00019894,2]
[346244789,1734807040694,-766.57,0.00019894,2]
[346244790,1734807040703,-1079.83,0.00019894,2]
[346244791,1734807040713,-855.22269352,0.00019894,2]
[346244792,1734807040722,-500.0,0.00019894,2]
[346244794,1734807040731,-500.0,0.00019894,2]
[346244796,1734807040740,-500.0,0.00019894,2]
[346244797,1734807040749,-500.0,0.00019894,2]
[346244798,1734807040758,-500.0,0.00019894,2]
[346244799,1734807040767,-1032.18,0.00019894,2]
[346244800,1734807040777,-500.0,0.00019894,2]
[346244801,1734807040786,-500.0,0.00019894,2]
[346244802,1734807040796,-500.0,0.00019894,2]
[346244803,1734807040805,-500.0,0.00019894,2]
[346244804,1734807040815,-673.48,0.00019894,2]
[346244805,1734807040825,-345.55,0.00019894,2]
[346244806,1734807040835,-500.0,0.00019894,2]
[346244807,1734807040844,-700.55,0.00019894,2]
[346244808,1734807040854,-558.07,0.00019894,2]
[346244809,1734807040863,-500.0,0.00019894,2]
[346244810,1734807040872,-502.09902832,0.00019894,2]
[346244811,1734807040881,-500.0,0.00019894,2]
[346244812,1734807040890,-502.00887132,0.00019894,2]
[346244813,1734807040900,-622.00936556,0.00019894,2]
[346244814,1734807040912,-498.66965219,0.00019894,2]
[346244815,1734807040932,-334.34098225,0.00019894,2]
[346244816,1734807040941,-923.98,0.00019894,2]
[346244817,1734807040950,-500.0,0.00019894,2]
[346244818,1734807040959,-500.0,0.00019894,2]
[346244819,1734807040969,-661.66901775,0.00019894,2]
[346244820,1734807040981,-343.75052228,0.00019894,2]
[346244821,1734807040992,-1052.12045997,0.00019894,2]
[346244822,1734807041002,-2074.01378397,0.00019894,2]
[346244823,1734807041014,-667.36621603,0.00019894,2]
[346244824,1734807041023,-500.0,0.00019894,2]
[346244825,1734807041032,-500.0,0.00019894,2]
[346244826,1734807041041,-500.0,0.00019894,2]
[346244827,1734807041051,-500.0,0.00019894,2]
[346244828,1734807041061,-254.39024846,0.00019894,2]
[346244829,1734807041072,-245.60975154,0.00019894,2]
[346244830,1734807041082,-1754.40684129,0.00019894,2]
[346244831,1734807041097,-509.91943753,0.00019893,2]
[346244832,1734807041112,-26.80331647,0.00019893,2]
[346244833,1734807041121,-468.19668358,0.00019894,2]
[346244846,1734807043134,-1274.5951504,0.00019894,2]
[346244847,1734807043146,-186.05132473,0.00019894,2]
[346244848,1734807043156,-337.97572069,0.00019894,2]
[346244849,1734807043165,-500.0,0.00019894,2]
[346244850,1734807043175,-500.0,0.00019894,2]
[346244851,1734807043184,-423.82095458,0.00019894,2]
[346244852,1734807043274,-244.59904542,0.00019894,2]
[346244853,1734807043283,-339.89,0.00019894,2]
[346244854,1734807043292,-731.43,0.00019894,2]
[346244855,1734807043301,-500.0,0.00019894,2]
[346244856,1734807043310,-500.0,0.00019894,2]
[346244857,1734807043320,-1317.6,0.00019894,2]
[346244858,1734807043329,-500.0,0.00019894,2]
[346244859,1734807043338,-500.0,0.00019894,2]
[346244860,1734807043348,-221.33095458,0.00019894,2]
[346244861,1734807043363,-278.66904542,0.00019894,2]
[346244862,1734807043372,-500.0,0.00019894,2]
[346244863,1734807043382,-608.68,0.00019894,2]
[346244864,1734807043391,-500.0,0.00019894,2]
[346244865,1734807043400,-1186.91,0.00019894,2]
[346244866,1734807043409,-2240.51,0.00019894,2]
[346244867,1734807043419,-439.46343408,0.00019894,2]
[346244868,1734807043429,-500.0,0.00019894,2]
[346244869,1734807043438,-500.72184488,0.00019894,2]
[346244870,1734807043447,-500.0,0.00019894,2]
[346244871,1734807043456,-2679.82,0.00019894,2]
[346244872,1734807043468,-501.54528282,0.00019894,2]
[346244873,1734807043478,-500.0,0.00019894,2]
[346244874,1734807043487,-792.92,0.00019894,2]
[346244876,1734807043497,-556.92,0.00019894,2]
[346244877,1734807043506,-626.92,0.00019894,2]
[346244878,1734807043517,-746.6,0.00019894,2]
[346244879,1734807043526,-500.0,0.00019894,2]
[346244880,1734807043535,-645.66,0.00019894,2]
[346244881,1734807043546,-500.0,0.00019894,2]
[346244882,1734807043556,-500.0,0.00019894,2]
[346244883,1734807043567,-500.0,0.00019894,2]
[346244884,1734807043577,-500.0,0.00019894,2]
[346244886,1734807043586,-566.19,0.00019894,2]
[346244889,1734807043595,-44645.05237938,0.00019895,2]
[346244891,1734807043607,-360.20251,0.00019895,2]
[346244894,1734807043619,-8854.24180631,0.00019895,2]
[346244906,1734807046012,-500.0,0.00019799,2]
[346244907,1734807046022,-468.64076705,0.00019893,2]
[346244908,1734807046088,-31.35923295,0.00019893,2]
[346244909,1734807046097,-500.0,0.00019894,2]
[346244910,1734807046107,-43806.60520431,0.00019895,2]
[346244911,1734807046116,-150.0,0.00019897,2]
[346244912,1734807046126,-8006.92369079,0.000199,30]
[346244913,1734807046135,-1787.6813,0.000199,2]
[346244914,1734807046145,-220.0,0.000199,2]
[346244915,1734807046154,-259.2456,0.000199,2]